[Event "USA-ch Women 2024"]
[Site "Saint Louis"]
[Date "2024.10.24"]
[Round "11.1"]
[White "Yip, Carissa"]
[Black "Lee, Alice"]
[Result "1/2-1/2"]
[ECO "C42"]
[WhiteElo "2418"]
[BlackElo "2395"]
[Annotator "TA"]
[PlyCount "84"]
[EventDate "2024.10.09"]
[EventType "tourn"]
[EventCountry "USA"]
[SourceTitle "playchess.com"]
[Source "ChessBase"]
[SourceQuality "1"]
[TimeControl "40/5400+30:1800+30"]

{[%evp 17,84,0,8,0,15,0,0,0,10,-10,-8,-10,-12,-12,-11,-3,0,0,6,0,13,16,8,8,13,7,16,4,11,15,26,14,15,12,3,5,4,4,6,0,28,31,35,12,13,11,13,0,0,0,0,0,0,0,0,0,0,0,0,0,0,-6,-14,-14,0,-14,0,-14,0]} 1. e4 {[%emt 0:00:02]} e5 {[%emt 0:02:21]} 2. Nf3 {[%emt 0:00:03]} Nf6 {[%emt 0:00:07]} 3. Nxe5 {[%emt 0:01:38]} d6 {[%emt 0:00:25]} 4. Nf3 {[%emt 0:00:04]} Nxe4 {[%emt 0:00:10]} 5. Qe2 {[%emt 0:00:04]} Qe7 {[%emt 0:00:14]} 6. d3 {[%emt 0:00:02]} Nf6 {[%emt 0:00:08]} 7. Bg5 {[%emt 0:00:08]} Qxe2+ {[%emt 0:03:01]} 8. Bxe2 {[%emt 0:00:03]} Be7 {[%emt 0:00:11]} 9. Nc3 {[%emt 0:00:03]} h6 {[%emt 0:00:33]} 10. Be3 {[%emt 0:00:03]} Nc6 {[%emt 0:03:01]} 11. h3 {[%emt 0:00:12]} Be6 {[%emt 0:00:26]} 12. O-O-O {[%emt 0:00:21]} O-O-O {[%emt 0:00:19]} 13. d4 {[%emt 0:00:23] [#] d5 is the strong threat.} Nb4 {[%emt 0:01:51]} 14. a3 {[%emt 0:00:32]} Nbd5 {[%emt 0:00:06]} 15. Nxd5 {[%emt 0:00:05]} Nxd5 {[%emt 0:00:07][%cal Bf6d5,Bd5b6,Bb6d7,Bd7f8,Bf8e6][%mdl 32]} 16. Bd2 {[%emt 0:00:08]} Nb6 {[%emt 0:03:04]} 17. b3 {[%emt 0:00:58]} Bf5 {[%emt 0:00:55]} 18. a4 {[%emt 0:02:36]} Nd7 {[%emt 0:01:51]} 19. Bc4 {[%emt 0:01:46][%cal Oh1e1]} Bg6 {[%emt 0:01:02]} 20. Rhe1 {[%emt 0:02:57]} Rhe8 {[%emt 0:01:17]} 21. Bf4 {[%emt 0:01:09]} Bf6 {[%emt 0:02:10]} 22. a5 {[%emt 0:07:12]} a6 {[%emt 0:02:20]} 23. c3 {[%emt 0:01:06]} Nf8 {[%emt 0:00:53]} 24. Rxe8 {[%emt 0:03:38]} Rxe8 {[%emt 0:00:10]} 25. Re1 {[%emt 0:00:11]} Rxe1+ {[%emt 0:00:09]} 26. Nxe1 {[%emt 0:00:04]} Ne6 {[%emt 0:01:44]} 27. Bd2 {[%emt 0:01:46]} Kd7 {[%emt 0:02:33]} 28. b4 {[%emt 0:01:11]} Ng5 {[%emt 0:05:46]} 29. f3 {[%emt 0:00:19]} Bd8 {[%emt 0:02:10]} 30. Nd3 {[%emt 0:02:49]} Bxd3 {[%emt 0:06:38] The position is equal.} 31. Bxd3 $11 {[%emt 0:00:06][%mdl 4096] [#] Endgame. Threatens to win with f4. KBB-KBN} d5 {[%emt 0:00:08]} 32. Bf5+ {[%emt 0:00:55]} (32. h4 $5 Ne6 $8 33. g3 $11) 32... Ne6 {[%emt 0:00:16]} 33. Kc2 {[%emt 0:01:35]} h5 {[%emt 0:01:14]} 34. g4 {[%emt 0:01:32]} g6 {[%emt 0:00:49]} 35. Bd3 {[%emt 0:00:04]} hxg4 {[%emt 0:01:43]} 36. fxg4 {[%emt 0:00:36]} Bh4 {[%emt 0:01:23]} 37. Kd1 {[%emt 0:00:22]} Ng5 {[%emt 0:00:23]} 38. Bxg5 {[%emt 0:02:54]} Bxg5 {[%emt 0:00:10]} 39. Bc2 {[%emt 0:00:05]} Bh4 {[%emt 0:00:10]} 40. Bd3 $1 {[%emt 0:00:04]} Bg5 {[%emt 0:00:05]} 41. Bc2 {[%emt 0:30:02]} Bh4 {[%emt 0:30:07]} 42. Bd3 {[%emt 0:00:03]} Bg5 {[%emt 0:00:18] Weighted Error Value: White=0.04 (flawless) /Black=0.03 (flawless) .  Inaccurate:     	---       	Black=1      OK:         	White=13    	Black=14     Best:        	---       	Black=1      Strong:       	White=1     	---} 1/2-1/2

[Event "USA-ch Women 2024"]
[Site "Saint Louis"]
[Date "2024.10.24"]
[Round "11.2"]
[White "Atwell, Rose"]
[Black "Lee, Megan"]
[Result "0-1"]
[ECO "A12"]
[WhiteElo "2185"]
[BlackElo "2253"]
[Annotator "RC"]
[PlyCount "112"]
[EventDate "2024.10.09"]
[EventType "tourn"]
[EventCountry "USA"]
[SourceTitle "playchess.com"]
[Source "ChessBase"]
[SourceQuality "1"]
[TimeControl "40/5400+30:1800+30"]

1. Nf3 {[%emt 0:00:01]} Nf6 {[%emt 0:00:04]} 2. b3 {[%emt 0:00:06]} d5 {[%emt 0:00:17]} 3. Bb2 {[%emt 0:00:05]} Bf5 {[%emt 0:00:05]} 4. g3 {[%emt 0:01:47]} h6 {[%emt 0:00:21]} 5. Bg2 {[%emt 0:01:16]} e6 {[%emt 0:00:06]} 6. c4 {[%emt 0:01:41]} c6 {[%emt 0:00:18]} 7. O-O {[%emt 0:00:44]} Be7 {[%emt 0:00:17]} 8. d3 {[%emt 0:01:15]} O-O {[%emt 0:00:06]} 9. Nbd2 {[%emt 0:00:42]} a5 {[%emt 0:00:31]} 10. a3 {[%emt 0:02:56]} Bh7 {[%emt 0:00:37]} 11. Re1 {[%emt 0:01:04]} Nbd7 {[%emt 0:00:49]} 12. cxd5 {[%emt 0:08:14]} exd5 {[%emt 0:00:34]} 13. Rc1 {[%emt 0:00:48]} Qb6 {[%emt 0:02:29]} 14. h3 {[%emt 0:12:25]} Bc5 {[%emt 0:06:42]} 15. d4 {[%emt 0:01:43]} Bd6 {[%emt 0:00:08]} 16. Ne5 {[%emt 0:04:55]} Rfe8 {[%emt 0:02:04]} 17. Nxd7 {[%emt 0:06:18]} Nxd7 {[%emt 0:00:02]} 18. e4 {[%emt 0:00:31]} dxe4 {[%emt 0:00:34]} 19. Nc4 {[%emt 0:04:34]} Qc7 {[%emt 0:00:31]} 20. d5 {[%emt 0:00:19]} Bf8 {[%emt 0:04:46]} 21. d6 {[%emt 0:04:39]} Qb8 {[%emt 0:01:22]} 22. Qd4 {[%emt 0:08:51]} b5 {[%emt 0:14:37]} 23. Nd2 {[%emt 0:03:41]} c5 {[%emt 0:01:16]} 24. Qc3 {[%emt 0:01:28]} b4 {[%emt 0:13:20]} 25. axb4 {[%emt 0:01:36]} axb4 {[%emt 0:00:48]} 26. Qe3 {[%emt 0:03:28]} Bxd6 {[%emt 0:07:05]} 27. Nxe4 {[%emt 0:05:24]} Ra2 {[%emt 0:05:48]} 28. Qd2 {[%emt 0:02:21]} Bxe4 {[%emt 0:05:25]} 29. Bxe4 {[%emt 0:01:04]} Rd8 {[%emt 0:06:44]} 30. Bb1 {[%emt 0:03:44]} Ra7 {[%emt 0:02:26]} 31. Qc2 {[%emt 0:04:58]} Nf8 {[%emt 0:00:16]} 32. Re4 {[%emt 0:02:01]} Bxg3 {[%emt 0:05:03]} 33. Bxg7 {[%emt 0:02:39]} Bh2+ {[%emt 0:00:37]} 34. Kh1 {[%emt 0:00:41]} Kxg7 {[%emt 0:00:35]} 35. Qb2+ {[%emt 0:05:25]} f6 {[%emt 0:00:54]} 36. f4 {[%emt 0:00:58]} Bxf4 {[%emt 0:00:40]} 37. Rg1+ {[%emt 0:00:28]} Bg5 {[%emt 0:01:48]} 38. h4 {[%emt 0:00:49]} Ng6 {[%emt 0:01:47]} 39. hxg5 {[%emt 0:01:14]} hxg5 {[%emt 0:00:01]} 40. Rxg5 {[%emt 0:01:03]} Rd1+ {[%emt 0:02:33]} 41. Kg2 {[%emt 0:03:03]} Rxb1 {[%emt 0:04:23]} 42. Rxg6+ {[%emt 0:00:43]} Kxg6 {[%emt 0:00:01]} 43. Qxb1 {[%emt 0:00:27]} Rg7 {[%emt 0:00:53]} 44. Kf1 {[%emt 0:06:14]} Kf7 {[%emt 0:01:56]} 45. Qd3 {[%emt 0:01:28]} Rg5 {[%emt 0:02:38]} 46. Rh4 {[%emt 0:01:44]} Qe8 {[%emt 0:05:22]} 47. Rh7+ {[%emt 0:03:08]} Ke6 {[%emt 0:00:25]} 48. Rc7 {[%emt 0:03:43]} Rf5+ {[%emt 0:01:10]} 49. Ke1 {[%emt 0:00:42]} Rd5 {[%emt 0:00:22]} 50. Qa6+ {[%emt 0:13:12]} Kf5+ {[%emt 0:00:22]} 51. Kf2 {[%emt 0:00:21]} Rd2+ {[%emt 0:01:20]} 52. Kf1 {[%emt 0:00:26]} Rd1+ {[%emt 0:00:06]} 53. Kf2 {[%emt 0:00:15]} Qe1+ {[%emt 0:00:18]} 54. Kf3 {[%emt 0:00:26]} Qe4+ {[%emt 0:00:24]} 55. Kg3 {[%emt 0:00:45]} Qf4+ {[%emt 0:00:29]} 56. Kg2 {[%emt 0:00:25]} Rd2+ {[%emt 0:00:06]} 0-1

[Event "USA-ch Women 2024"]
[Site "Saint Louis"]
[Date "2024.10.24"]
[Round "11.3"]
[White "Tokhirjonova, Gulrukhbegim"]
[Black "Abrahamyan, Tatev"]
[Result "1-0"]
[ECO "C18"]
[WhiteElo "2374"]
[BlackElo "2327"]
[Annotator "TA"]
[PlyCount "89"]
[EventDate "2024.10.09"]
[EventType "tourn"]
[EventCountry "USA"]
[SourceTitle "playchess.com"]
[Source "ChessBase"]
[SourceQuality "1"]
[TimeControl "40/5400+30:1800+30"]

{[%evp 12,89,36,16,16,24,20,12,22,-14,-39,-21,-32,-40,-42,-15,-14,-58,-57,-63,-64,-70,-15,-42,-11,0,0,-41,-37,-26,60,76,54,50,79,40,43,49,143,137,179,33,120,100,234,209,254,218,270,204,297,291,306,308,318,308,302,283,572,520,1087,1124,1119,1133,1383,1339,1799,1055,2355,2472,3607,3802,29981,29982,3676,2619,29990,29987,29987,29988]} 1. e4 {[%emt 0:00:07]} e6 {[%emt 0:00:04]} 2. d4 {[%emt 0:00:06]} d5 {[%emt 0:00:04]} 3. Nc3 {[%emt 0:00:08]} Bb4 {[%emt 0:00:29]} 4. e5 {[%emt 0:00:46]} c5 {[%emt 0:00:25]} 5. a3 {[%emt 0:00:24]} Ba5 {[%emt 0:00:15]} 6. b4 {[%emt 0:00:49]} cxd4 {[%emt 0:00:19]} 7. Qg4 {[%emt 0:02:35]} Kf8 {[%emt 0:01:07]} 8. Nb5 {[%emt 0:02:44][%mdl 1024] White has compensation.} Bb6 {[%emt 0:01:35]} 9. Nf3 {[%emt 0:02:45][%cal Of1d3]} (9. Nxd4 Qc7 10. Bb2 Qxe5+ 11. Qe2 Qxe2+ 12. Bxe2 Nc6 $17) 9... Nc6 {[%emt 0:01:04] The position is equal.} 10. Qf4 {[%emt 0:01:09][%cal Oc1b2]} (10. Nbxd4 Nxd4 11. Nxd4 Qc7 $17) 10... f6 {[%emt 0:08:38]} 11. Bb2 {[%emt 0:08:19][%cal Rb5d4] [#]} g5 $1 {[%emt 0:12:41]} 12. Nxg5 {[%emt 0:08:52]} (12. Qg3 fxe5) 12... Nxe5 {[%emt 0:00:34] ...Nc6 is the strong threat.} 13. Nxd4 {[%emt 0:02:37]} (13. Bxd4 $2 Ng6 14. Qf3 (14. Bxb6 $2 Qxb6 15. Qf3 a6 $19) 14... a6 15. Bxb6 Qxb6 $17) 13... Qe7 {[%emt 0:01:06] Black wants to play ...Ng6.} 14. Ngf3 {[%emt 0:09:18]} Ng6 {[%emt 0:04:43]} 15. Qd2 {[%emt 0:00:46]} e5 {[%emt 0:01:26]} 16. Nb3 {[%emt 0:00:10][%cal Oa3a4]} Be6 {[%emt 0:02:31]} ({Black should try} 16... Qf7 $15) 17. g3 {[%emt 0:02:36]} h5 {[%emt 0:05:18]} 18. a4 {[%emt 0:00:19][%cal Ba3a4,Ba4a5][%mdl 32]} h4 {[%emt 0:12:18]} 19. Rg1 {[%emt 0:10:55]} hxg3 {[%emt 0:16:16]} 20. hxg3 {[%emt 0:01:52]} Nh6 {[%emt 0:03:12]} (20... Bf7 $11) 21. a5 $14 {[%emt 0:00:38]} Bc7 {[%emt 0:00:24]} 22. Nc5 {[%emt 0:00:18]} Bf7 {[%emt 0:05:50]} 23. Nxb7 {[%emt 0:02:52] White has more active pieces.} Rb8 {[%emt 0:00:19]} 24. a6 {[%emt 0:01:44]} Bb6 {[%emt 0:04:19]} (24... Nf5 $14) 25. b5 $36 {[%emt 0:00:38][%mdl 2048] Hoping for Ba3. White is on the roll.} Kg7 {[%emt 0:00:24] [#]} 26. Nh4 {[%emt 0:00:33]} (26. g4 $1 $18) 26... Qd7 {[%emt 0:02:58]} (26... Rbc8 $14) 27. c4 $16 {[%emt 0:05:11][%cal Bc2c4,Bc4c5,Bc5c6][%mdl 32] Strongly threatening c5.} Rbc8 {[%emt 0:04:07] [#] Loses the game.} (27... Rxb7 $16 28. axb7 Qxb7 29. cxd5 Rd8) 28. Rc1 $1 $18 {[%emt 0:00:40]} d4 {[%emt 0:00:30]} (28... Nxh4 $2 29. gxh4+ Kh7 30. c5 $18) 29. c5 {[%emt 0:00:35]} Bc7 {[%emt 0:00:22]} 30. c6 {[%emt 0:03:51]} Qe8 {[%emt 0:02:09]} (30... Qg4 {was necessary.} 31. Be2 Qh3) 31. Bh3 {[%emt 0:02:31]} Be6 {[%emt 0:03:55]} 32. Bxe6 {[%emt 0:00:44]} Qxe6 {[%emt 0:00:06]} 33. Qd3 {[%emt 0:00:33]} Ne7 {[%emt 0:05:05]} 34. Ba3 {[%emt 0:02:27]} e4 $2 {[%emt 0:00:47]} (34... Nhf5 {is a better defense.} 35. Nc5 Qa2) 35. Qxd4 {[%emt 0:02:58]} Rcd8 {[%emt 0:01:13] Dodges Qd7} (35... Nd5 $142 36. g4 (36. Qxa7 e3 $18) 36... Nf7 37. Nf5+ Kh7 38. Rh1+ (38. Qxa7 Ne5 $18) 38... Kg8) 36. Nxd8 {[%emt 0:02:27]} Rxd8 {[%emt 0:00:16]} 37. Qxa7 {[%emt 0:00:59]} Ba5+ {[%emt 0:00:37]} 38. Kf1 {[%emt 0:00:03]} Qh3+ {[%emt 0:01:22]} 39. Ng2 {[%emt 0:00:02][%cal Bh4g2,Bg2f4,Bf4e2][%mdl 32]} Nhf5 {[%emt 0:00:17]} 40. Bxe7 {[%emt 0:01:38]} Nxg3+ {[%emt 0:00:41]} 41. fxg3 {[%emt 0:30:09]} Qf5+ {[%emt 0:01:03]} 42. Nf4 {[%emt 0:00:00]} Qxb5+ {[%emt 0:02:06]} 43. Ne2 {[%emt 0:00:00]} Rd5 {[%emt 0:04:23]} 44. Bd6+ {[%emt 0:00:00]} Kg6 {[%emt 0:00:29] [#]} 45. Rh1 $1 {[%emt 0:00:00] Weighted Error Value: White=0.18 (very precise) /Black=0.75.  Mistake:       	White=1     	Black=8      Inaccurate:     	White=5     	Black=3      OK:         	White=12    	Black=8      Best:        	White=3     	Black=2      Strong:       	White=1     	---        Brilliant:      	---       	Black=1} 1-0

[Event "USA-ch Women 2024"]
[Site "Saint Louis"]
[Date "2024.10.24"]
[Round "11.4"]
[White "Yu, Jennifer"]
[Black "Pourkashiyan, Atousa"]
[Result "1/2-1/2"]
[ECO "A07"]
[WhiteElo "2267"]
[BlackElo "2269"]
[Annotator "RC"]
[PlyCount "134"]
[EventDate "2024.10.09"]
[EventType "tourn"]
[EventCountry "USA"]
[SourceTitle "playchess.com"]
[Source "ChessBase"]
[SourceQuality "1"]
[TimeControl "40/5400+30:1800+30"]

1. Nf3 {[%emt 0:00:06]} d5 {[%emt 0:00:12]} 2. g3 {[%emt 0:00:16]} b6 {[%emt 0:00:11]} 3. Bg2 {[%emt 0:01:54]} Bb7 {[%emt 0:00:12]} 4. d4 {[%emt 0:01:58]} e6 {[%emt 0:00:31]} 5. O-O {[%emt 0:01:59]} Nd7 {[%emt 0:00:12]} 6. a4 {[%emt 0:02:28]} a6 {[%emt 0:01:01]} 7. b3 {[%emt 0:02:37]} Ngf6 {[%emt 0:00:26]} 8. Bb2 {[%emt 0:02:43]} Be7 {[%emt 0:04:31]} 9. Nbd2 {[%emt 0:04:22]} O-O {[%emt 0:00:40]} 10. c4 {[%emt 0:05:02]} c5 {[%emt 0:03:54]} 11. e3 {[%emt 0:05:23]} Rc8 {[%emt 0:02:59]} 12. Qe2 {[%emt 0:02:21]} cxd4 {[%emt 0:07:38]} 13. Nxd4 {[%emt 0:02:54]} Rc7 {[%emt 0:04:40]} 14. cxd5 {[%emt 0:11:38]} Nxd5 {[%emt 0:02:31]} 15. e4 {[%emt 0:00:47]} Nb4 {[%emt 0:01:44]} 16. Nc4 {[%emt 0:00:59]} Bc5 {[%emt 0:13:06]} 17. Rfd1 {[%emt 0:09:09]} Qe7 {[%emt 0:01:43]} 18. Rd2 {[%emt 0:08:34]} Nc6 {[%emt 0:07:30]} 19. Rad1 {[%emt 0:06:36]} Bb4 {[%emt 0:07:10]} 20. Nxc6 {[%emt 0:05:23]} Bxc6 {[%emt 0:00:07]} 21. Rc2 {[%emt 0:02:43]} Bb7 {[%emt 0:07:47]} 22. Ne3 {[%emt 0:05:04]} Rfc8 {[%emt 0:07:39]} 23. Rxc7 {[%emt 0:01:16]} Rxc7 {[%emt 0:00:02]} 24. Qd3 {[%emt 0:05:56]} f6 {[%emt 0:06:22]} 25. e5 {[%emt 0:04:13]} Nxe5 {[%emt 0:05:51]} 26. Bxe5 {[%emt 0:01:10]} fxe5 {[%emt 0:00:14]} 27. Bxb7 {[%emt 0:00:16]} Rxb7 {[%emt 0:00:03]} 28. Qxa6 {[%emt 0:00:08]} Bc5 {[%emt 0:01:28]} 29. Qa8+ {[%emt 0:01:33]} Kf7 {[%emt 0:00:03]} 30. Nc4 {[%emt 0:00:41]} Kf6 {[%emt 0:02:32]} 31. Rd8 {[%emt 0:01:30]} Qf7 {[%emt 0:05:43]} 32. Kg2 {[%emt 0:01:05]} e4 {[%emt 0:00:31]} 33. Rd2 {[%emt 0:00:46]} Qc7 {[%emt 0:02:40]} 34. Re2 {[%emt 0:01:34]} b5 {[%emt 0:04:01]} 35. axb5 {[%emt 0:00:45]} Rxb5 {[%emt 0:00:01]} 36. Qxe4 {[%emt 0:01:26]} Qb7 {[%emt 0:00:20]} 37. Nd2 {[%emt 0:00:33]} Kf7 {[%emt 0:00:49]} 38. Qxb7+ {[%emt 0:00:32]} Rxb7 {[%emt 0:00:01]} 39. Ne4 {[%emt 0:00:05]} Be7 {[%emt 0:00:21]} 40. Re3 {[%emt 0:00:24]} h6 {[%emt 0:02:28]} 41. h4 {[%emt 0:05:45]} g5 {[%emt 0:02:53]} 42. hxg5 {[%emt 0:01:17]} hxg5 {[%emt 0:00:06]} 43. Kf3 {[%emt 0:00:06]} Kg6 {[%emt 0:03:55]} 44. Kg4 {[%emt 0:01:53]} Rb4 {[%emt 0:01:04]} 45. f3 {[%emt 0:00:26]} Bf6 {[%emt 0:10:00]} 46. Rd3 {[%emt 0:02:14]} Be7 {[%emt 0:03:22]} 47. Rc3 {[%emt 0:03:57]} Rb6 {[%emt 0:00:43]} 48. Re3 {[%emt 0:09:29]} Rb4 {[%emt 0:00:44]} 49. Rd3 {[%emt 0:00:04]} Rb7 {[%emt 0:02:44]} 50. Rc3 {[%emt 0:03:37]} Rb6 {[%emt 0:00:29]} 51. Rc7 {[%emt 0:03:50]} Bf6 {[%emt 0:02:30]} 52. Nxf6 {[%emt 0:00:27]} Kxf6 {[%emt 0:00:04]} 53. Rc3 {[%emt 0:00:03]} Rb4+ {[%emt 0:00:34]} 54. Kh3 {[%emt 0:00:25]} g4+ {[%emt 0:02:19]} 55. fxg4 {[%emt 0:00:52]} Kg5 {[%emt 0:00:16]} 56. Re3 {[%emt 0:00:42]} Rb6 {[%emt 0:00:46]} 57. Kg2 {[%emt 0:01:40]} Kxg4 {[%emt 0:00:10]} 58. Kf2 {[%emt 0:00:52]} e5 {[%emt 0:01:36]} 59. Ke2 {[%emt 0:01:05]} Kf5 {[%emt 0:00:05]} 60. Rc3 {[%emt 0:01:26]} Ke4 {[%emt 0:00:36]} 61. Re3+ {[%emt 0:00:50]} Kd4 {[%emt 0:00:11]} 62. Rd3+ {[%emt 0:00:35]} Ke4 {[%emt 0:00:02]} 63. Kd2 {[%emt 0:00:21]} Ra6 {[%emt 0:00:49]} 64. Re3+ {[%emt 0:00:24]} Kd4 {[%emt 0:00:04]} 65. Rd3+ {[%emt 0:00:11]} Ke4 {[%emt 0:00:01]} 66. Re3+ {[%emt 0:00:53]} Kd4 {[%emt 0:00:02]} 67. Rd3+ {[%emt 0:00:05]} Ke4 {[%emt 0:00:32]} 1/2-1/2

[Event "USA-ch Women 2024"]
[Site "Saint Louis"]
[Date "2024.10.24"]
[Round "11.5"]
[White "Cervantes Landeiro, Thalia"]
[Black "Zatonskih, Anna"]
[Result "1/2-1/2"]
[ECO "D02"]
[WhiteElo "2302"]
[BlackElo "2312"]
[Annotator "RC"]
[PlyCount "114"]
[EventDate "2024.10.09"]
[EventType "tourn"]
[EventCountry "USA"]
[SourceTitle "playchess.com"]
[Source "ChessBase"]
[SourceQuality "1"]
[TimeControl "40/5400+30:1800+30"]

1. d4 {[%emt 0:00:03]} d5 {[%emt 0:00:15]} 2. Nf3 {[%emt 0:00:11]} e6 {[%emt 0:01:09]} 3. Bf4 {[%emt 0:00:23]} Bd6 {[%emt 0:01:41]} 4. e3 {[%emt 0:00:12]} Bxf4 {[%emt 0:16:22]} 5. exf4 {[%emt 0:00:16]} Qd6 {[%emt 0:01:02]} 6. Qd2 {[%emt 0:00:18]} Nf6 {[%emt 0:00:12]} 7. Nc3 {[%emt 0:01:30]} b6 {[%emt 0:08:54]} 8. Ne5 {[%emt 0:06:23]} c6 {[%emt 0:04:53]} 9. g4 {[%emt 0:04:33]} Ba6 {[%emt 0:08:01]} 10. Bxa6 {[%emt 0:08:38]} Nxa6 {[%emt 0:00:15]} 11. Qe2 {[%emt 0:00:18]} Nc7 {[%emt 0:01:30]} 12. g5 {[%emt 0:10:29]} Nd7 {[%emt 0:08:45]} 13. O-O-O {[%emt 0:04:24]} O-O-O {[%emt 0:06:04]} 14. h4 {[%emt 0:09:11]} Rdf8 {[%emt 0:03:13]} 15. h5 {[%emt 0:16:07]} f6 {[%emt 0:03:21]} 16. gxf6 {[%emt 0:02:05]} Rxf6 {[%emt 0:07:09]} 17. Qg4 {[%emt 0:02:52]} Ne8 {[%emt 0:01:57]} 18. Ne2 {[%emt 0:01:53]} Rhf8 {[%emt 0:00:38]} 19. Rh3 {[%emt 0:01:08]} Kb7 {[%emt 0:04:08]} 20. Rc3 {[%emt 0:01:26]} Nb8 {[%emt 0:01:04]} 21. Rg1 {[%emt 0:05:22]} Rf5 {[%emt 0:03:58]} 22. Qh4 {[%emt 0:00:33]} Qc7 {[%emt 0:02:14]} 23. Rcg3 {[%emt 0:04:16]} Ka8 {[%emt 0:01:10]} 24. a4 {[%emt 0:03:22]} Rg8 {[%emt 0:01:11]} 25. a5 {[%emt 0:02:08]} bxa5 {[%emt 0:01:02]} 26. Rc3 {[%emt 0:01:59]} Nd6 {[%emt 0:00:54]} 27. f3 {[%emt 0:01:42]} Nb5 {[%emt 0:03:04]} 28. Rc5 {[%emt 0:00:21]} a6 {[%emt 0:00:14]} 29. Rg5 {[%emt 0:02:10]} Rff8 {[%emt 0:00:47]} 30. Qg4 {[%emt 0:01:27]} Re8 {[%emt 0:00:48]} 31. f5 {[%emt 0:02:02]} h6 {[%emt 0:03:29]} 32. f6 {[%emt 0:01:36]} hxg5 {[%emt 0:01:00]} 33. f7 {[%emt 0:00:02]} Rgf8 {[%emt 0:00:32]} 34. fxe8=Q {[%emt 0:00:14]} Rxe8 {[%emt 0:00:10]} 35. Qxg5 {[%emt 0:00:46]} Rf8 {[%emt 0:00:49]} 36. f4 {[%emt 0:01:04]} a4 {[%emt 0:00:41]} 37. c4 {[%emt 0:04:46]} Nd6 {[%emt 0:00:59]} 38. h6 {[%emt 0:01:38]} gxh6 {[%emt 0:02:56]} 39. Qxh6 {[%emt 0:00:06]} Rc8 {[%emt 0:01:35]} 40. cxd5 {[%emt 0:01:17]} Ne4 {[%emt 0:01:22]} 41. d6 {[%emt 0:09:10]} Nxd6 {[%emt 0:09:54]} 42. Qxe6 {[%emt 0:03:51]} Ne4 {[%emt 0:07:20]} 43. Rc2 {[%emt 0:03:21]} Qa5 {[%emt 0:07:12]} 44. Nd3 {[%emt 0:05:30]} a3 {[%emt 0:00:35]} 45. bxa3 {[%emt 0:04:40]} Qxa3+ {[%emt 0:01:04]} 46. Kb1 {[%emt 0:02:20]} Qxd3 {[%emt 0:02:40]} 47. Qxc8 {[%emt 0:00:44]} Nd2+ {[%emt 0:03:03]} 48. Kc1 {[%emt 0:00:20]} Nb3+ {[%emt 0:01:09]} 49. Kb2 {[%emt 0:00:17]} Nxd4 {[%emt 0:00:13]} 50. Nxd4 {[%emt 0:01:39]} Qxd4+ {[%emt 0:00:01]} 51. Rc3 {[%emt 0:01:00]} Qb4+ {[%emt 0:01:01]} 52. Kc2 {[%emt 0:00:25]} Qe4+ {[%emt 0:00:15]} 53. Kb3 {[%emt 0:01:24]} Qb1+ {[%emt 0:00:55]} 54. Kc4 {[%emt 0:00:34]} Qe4+ {[%emt 0:00:33]} 55. Kb3 {[%emt 0:00:45]} Qb1+ {[%emt 0:00:03]} 56. Ka3 {[%emt 0:02:09]} Qa1+ {[%emt 0:01:17]} 57. Kb3 {[%emt 0:00:46]} Qb1+ {[%emt 0:00:22]} 1/2-1/2